[Event "Titled Tuesday Blitz July 25 Late 2023"]
[White "Carlsen, Magnus"]
[Black "Sjugirov, Sanan"]
[WhiteFideId "1503014"]
[BlackFideId "4189302"]
[WhiteElo "3257"]
[BlackElo "2946"]
[Result "1-0"]
[Round "6"]
[TimeControl "180+2"]
[Date "2023.07.25"]
[WhiteClock "0:01:16"]
[BlackClock "0:00:00"]
[Board "4"]

1. e4 {[%clk 0:02:43]}  e5 {[%clk 0:02:58]} 2. f4 {[%clk 0:02:42]}  exf4 {[%clk 0:02:57]} 3. Bc4 {[%clk 0:02:42]}  d6 {[%clk 0:02:31]} 4. d4 {[%clk 0:02:40]}  Qh4+ {[%clk 0:02:02]} 5. Kf1 {[%clk 0:02:39]}  Be6 {[%clk 0:01:52]} 6. Nf3 {[%clk 0:02:36]}  Bxc4+ {[%clk 0:01:51]} 7. Kg1 {[%clk 0:02:33]}  Qe7 {[%clk 0:01:46]} 8. Nc3 {[%clk 0:02:30]}  g5 {[%clk 0:01:43]} 9. h4 {[%clk 0:02:08]}  g4 {[%clk 0:01:39]} 10. Nh2 {[%clk 0:02:02]}  h5 {[%clk 0:01:27]} 11. Bxf4 {[%clk 0:02:01]}  Bg7 {[%clk 0:01:26]} 12. b3 {[%clk 0:01:53]}  Be6 {[%clk 0:01:25]} 13. Nf1 {[%clk 0:01:53]}  Nc6 {[%clk 0:01:16]} 14. Ne2 {[%clk 0:01:52]}  Bd7 {[%clk 0:01:10]} 15. Nfg3 {[%clk 0:01:51]}  O-O-O {[%clk 0:01:03]} 16. Qd2 {[%clk 0:01:46]}  Nf6 {[%clk 0:00:45]} 17. Nc3 {[%clk 0:01:42]}  Nxe4 {[%clk 0:00:25]} 18. Ngxe4 {[%clk 0:01:29]}  Bxd4+ {[%clk 0:00:25]} 19. Kf1 {[%clk 0:01:28]}  f5 {[%clk 0:00:12]} 20. Ng3 {[%clk 0:01:28]}  Qg7 {[%clk 0:00:10]} 21. Nge2 {[%clk 0:01:28]}  Be5 {[%clk 0:00:07]} 22. Re1 {[%clk 0:01:25]}  Rde8 {[%clk 0:00:07]} 23. Nd5 {[%clk 0:01:24]}  Ne7 {[%clk 0:00:06]} 24. Nxe7+ {[%clk 0:01:23]}  Rxe7 {[%clk 0:00:07]} 25. Bg5 {[%clk 0:01:24]}  Ree8 {[%clk 0:00:00]} 26. Kf2 {[%clk 0:01:16]} 1-0


[Site "https://www.chess.com"]

[Event "Titled Tuesday Blitz July 25 Late 2023"]
[White "Kramnik, Vladimir"]
[Black "Bluebaum, Matthias"]
[WhiteFideId "4101588"]
[BlackFideId "24651516"]
[WhiteElo "3004"]
[BlackElo "3044"]
[Result "0-1"]
[Round "6"]
[TimeControl "180+2"]
[Date "2023.07.25"]
[WhiteClock "0:00:00"]
[BlackClock "0:00:06"]
[Board "5"]

1. e4 {[%clk 0:03:00]}  e6 {[%clk 0:03:00]} 2. d4 {[%clk 0:03:00]}  d5 {[%clk 0:03:01]} 3. Nc3 {[%clk 0:03:00]}  Nf6 {[%clk 0:03:00]} 4. e5 {[%clk 0:03:00]}  Nfd7 {[%clk 0:03:01]} 5. f4 {[%clk 0:03:00]}  c5 {[%clk 0:03:01]} 6. Nf3 {[%clk 0:03:00]}  Nc6 {[%clk 0:03:02]} 7. Be3 {[%clk 0:02:59]}  a6 {[%clk 0:03:03]} 8. Ne2 {[%clk 0:02:57]}  Qb6 {[%clk 0:03:03]} 9. Qc1 {[%clk 0:02:55]}  Be7 {[%clk 0:03:04]} 10. c3 {[%clk 0:02:53]}  O-O {[%clk 0:03:04]} 11. h4 {[%clk 0:02:52]}  f6 {[%clk 0:03:05]} 12. Rh3 {[%clk 0:02:43]}  Qa5 {[%clk 0:03:05]} 13. a3 {[%clk 0:02:27]}  Nxd4 {[%clk 0:02:35]} 14. Nexd4 {[%clk 0:02:22]}  cxd4 {[%clk 0:02:35]} 15. b4 {[%clk 0:02:20]}  Qc7 {[%clk 0:02:27]} 16. cxd4 {[%clk 0:02:16]}  Qxc1+ {[%clk 0:02:27]} 17. Rxc1 {[%clk 0:02:15]}  Nb6 {[%clk 0:02:27]} 18. h5 {[%clk 0:01:56]}  f5 {[%clk 0:02:13]} 19. h6 {[%clk 0:01:53]}  g6 {[%clk 0:02:14]} 20. Rc7 {[%clk 0:01:52]}  Rf7 {[%clk 0:02:03]} 21. Bd2 {[%clk 0:01:51]}  Bd8 {[%clk 0:02:02]} 22. Rxf7 {[%clk 0:01:47]}  Kxf7 {[%clk 0:02:03]} 23. Ng5+ {[%clk 0:01:35]}  Bxg5 {[%clk 0:02:02]} 24. fxg5 {[%clk 0:01:36]}  Bd7 {[%clk 0:02:03]} 25. Rc3 {[%clk 0:01:36]}  Rc8 {[%clk 0:01:52]} 26. Rc5 {[%clk 0:01:33]}  Na4 {[%clk 0:01:50]} 27. Rxc8 {[%clk 0:01:32]}  Bxc8 {[%clk 0:01:51]} 28. b5 {[%clk 0:01:32]}  Nb6 {[%clk 0:01:44]} 29. bxa6 {[%clk 0:01:26]}  bxa6 {[%clk 0:01:45]} 30. Bb4 {[%clk 0:01:24]}  Nc4 {[%clk 0:01:45]} 31. Bd3 {[%clk 0:01:09]}  Bd7 {[%clk 0:01:41]} 32. g3 {[%clk 0:01:02]}  Ba4 {[%clk 0:01:41]} 33. Bc5 {[%clk 0:00:59]}  Ke8 {[%clk 0:01:38]} 34. g4 {[%clk 0:00:56]}  Kf7 {[%clk 0:01:27]} 35. gxf5 {[%clk 0:00:45]}  gxf5 {[%clk 0:01:27]} 36. Be2 {[%clk 0:00:29]}  Kg6 {[%clk 0:01:27]} 37. Be7 {[%clk 0:00:29]}  Bb5 {[%clk 0:01:25]} 38. Kf2 {[%clk 0:00:27]}  Nd2 {[%clk 0:01:19]} 39. Bd1 {[%clk 0:00:22]}  Ne4+ {[%clk 0:01:19]} 40. Ke3 {[%clk 0:00:21]}  Nxg5 {[%clk 0:01:17]} 41. a4 {[%clk 0:00:21]}  Bc4 {[%clk 0:01:17]} 42. a5 {[%clk 0:00:20]}  Kxh6 {[%clk 0:01:14]} 43. Ba4 {[%clk 0:00:19]}  Kh5 {[%clk 0:00:29]} 44. Kf4 {[%clk 0:00:19]}  Nh3+ {[%clk 0:00:19]} 45. Kg3 {[%clk 0:00:19]}  Bf1 {[%clk 0:00:15]} 46. Bd7 {[%clk 0:00:12]}  f4+ {[%clk 0:00:15]} 47. Kf3 {[%clk 0:00:11]}  Ng5+ {[%clk 0:00:11]} 48. Kxf4 {[%clk 0:00:11]}  Nh3+ {[%clk 0:00:12]} 49. Kg3 {[%clk 0:00:11]}  Kg6 {[%clk 0:00:07]} 50. Bxe6 {[%clk 0:00:10]}  Ng5 {[%clk 0:00:07]} 51. Bxg5 {[%clk 0:00:10]}  Kxg5 {[%clk 0:00:08]} 52. Bxd5 {[%clk 0:00:10]}  Kf5 {[%clk 0:00:08]} 53. Bg2 {[%clk 0:00:07]}  Bb5 {[%clk 0:00:05]} 54. Kf2 {[%clk 0:00:06]}  Kf4 {[%clk 0:00:03]} 55. e6 {[%clk 0:00:05]}  Kf5 {[%clk 0:00:04]} 56. d5 {[%clk 0:00:05]}  Ke5 {[%clk 0:00:04]} 57. Kg3 {[%clk 0:00:05]}  Kd6 {[%clk 0:00:04]} 58. Kh4 {[%clk 0:00:05]}  Bc4 {[%clk 0:00:03]} 59. Kg5 {[%clk 0:00:06]}  Bd3 {[%clk 0:00:03]} 60. Kh6 {[%clk 0:00:06]}  Ke7 {[%clk 0:00:03]} 61. Bf3 {[%clk 0:00:04]}  Bf5 {[%clk 0:00:03]} 62. Be2 {[%clk 0:00:04]}  Be4 {[%clk 0:00:04]} 63. Bc4 {[%clk 0:00:03]}  Kd6 {[%clk 0:00:04]} 64. Kg5 {[%clk 0:00:03]}  Ke7 {[%clk 0:00:04]} 65. d6+ {[%clk 0:00:02]}  Kxd6 {[%clk 0:00:04]} 66. Kf6 {[%clk 0:00:02]}  Bc6 {[%clk 0:00:04]} 67. e7 {[%clk 0:00:03]}  h5 {[%clk 0:00:05]} 68. Bxa6 {[%clk 0:00:03]}  h4 {[%clk 0:00:05]} 69. Bb7 {[%clk 0:00:03]}  Be8 {[%clk 0:00:04]} 70. a6 {[%clk 0:00:04]}  Kc7 {[%clk 0:00:05]} 71. Bg2 {[%clk 0:00:03]}  Kb6 {[%clk 0:00:05]} 72. Bh3 {[%clk 0:00:03]}  Kxa6 {[%clk 0:00:06]} 73. Bd7 {[%clk 0:00:00]}  Bxd7 {[%clk 0:00:06]} 0-1


[Site "https://www.chess.com"]

[Event "Titled Tuesday Blitz July 25 Late 2023"]
[White "Sargsyan, Shant"]
[Black "Andreikin, Dmitry"]
[WhiteFideId "13306766"]
[BlackFideId "4158814"]
[WhiteElo "2992"]
[BlackElo "3029"]
[Result "0-1"]
[Round "6"]
[TimeControl "180+2"]
[Date "2023.07.25"]
[WhiteClock "0:00:05"]
[BlackClock "0:00:10"]
[Board "6"]

1. c4 {[%clk 0:03:00]}  c6 {[%clk 0:02:57]} 2. Nf3 {[%clk 0:03:00]}  d5 {[%clk 0:02:57]} 3. e3 {[%clk 0:03:01]}  Nf6 {[%clk 0:02:57]} 4. Nc3 {[%clk 0:03:01]}  a6 {[%clk 0:02:57]} 5. d4 {[%clk 0:03:00]}  b5 {[%clk 0:02:57]} 6. b3 {[%clk 0:03:00]}  Bg4 {[%clk 0:02:57]} 7. a4 {[%clk 0:03:00]}  b4 {[%clk 0:02:48]} 8. Ne2 {[%clk 0:03:00]}  a5 {[%clk 0:02:41]} 9. Ne5 {[%clk 0:02:55]}  Bh5 {[%clk 0:02:39]} 10. Qc2 {[%clk 0:02:51]}  Bg6 {[%clk 0:02:34]} 11. Nxg6 {[%clk 0:02:51]}  hxg6 {[%clk 0:02:35]} 12. cxd5 {[%clk 0:02:48]}  cxd5 {[%clk 0:02:33]} 13. Nf4 {[%clk 0:02:48]}  Nbd7 {[%clk 0:02:27]} 14. Bb5 {[%clk 0:02:29]}  Rc8 {[%clk 0:02:25]} 15. Qe2 {[%clk 0:02:13]}  e6 {[%clk 0:02:25]} 16. Nd3 {[%clk 0:02:13]}  Bd6 {[%clk 0:02:23]} 17. h4 {[%clk 0:02:07]}  Ne4 {[%clk 0:02:20]} 18. Bxd7+ {[%clk 0:01:24]}  Qxd7 {[%clk 0:02:15]} 19. Bb2 {[%clk 0:01:24]}  Qe7 {[%clk 0:02:06]} 20. h5 {[%clk 0:01:17]}  Qg5 {[%clk 0:02:04]} 21. g4 {[%clk 0:01:10]}  gxh5 {[%clk 0:02:00]} 22. gxh5 {[%clk 0:01:10]}  Qg2 {[%clk 0:01:57]} 23. Qf1 {[%clk 0:01:10]}  Qxf1+ {[%clk 0:01:44]} 24. Kxf1 {[%clk 0:01:11]}  Nd2+ {[%clk 0:01:39]} 25. Ke2 {[%clk 0:01:10]}  Nxb3 {[%clk 0:01:36]} 26. Rad1 {[%clk 0:01:04]}  Rc2+ {[%clk 0:01:35]} 27. Ke1 {[%clk 0:01:03]}  Ke7 {[%clk 0:01:33]} 28. Rh3 {[%clk 0:00:49]}  Rh6 {[%clk 0:01:29]} 29. Rb1 {[%clk 0:00:17]}  g6 {[%clk 0:01:22]} 30. Nc5 {[%clk 0:00:13]}  Nd2 {[%clk 0:01:11]} 31. Kd1 {[%clk 0:00:10]}  Nxb1 {[%clk 0:00:40]} 32. Kxc2 {[%clk 0:00:10]}  Na3+ {[%clk 0:00:40]} 33. Bxa3 {[%clk 0:00:04]}  bxa3 {[%clk 0:00:41]} 34. Nb3 {[%clk 0:00:01]}  Rxh5 {[%clk 0:00:34]} 35. Rf3 {[%clk 0:00:01]}  Bb4 {[%clk 0:00:33]} 36. Nc1 {[%clk 0:00:02]}  Rh1 {[%clk 0:00:29]} 37. Rg3 {[%clk 0:00:02]}  Rf1 {[%clk 0:00:23]} 38. Rg2 {[%clk 0:00:02]}  f5 {[%clk 0:00:23]} 39. f4 {[%clk 0:00:02]}  Kf6 {[%clk 0:00:21]} 40. Re2 {[%clk 0:00:02]}  g5 {[%clk 0:00:18]} 41. fxg5+ {[%clk 0:00:03]}  Kxg5 {[%clk 0:00:19]} 42. Rg2+ {[%clk 0:00:04]}  Kf6 {[%clk 0:00:20]} 43. Re2 {[%clk 0:00:04]}  f4 {[%clk 0:00:19]} 44. exf4 {[%clk 0:00:04]}  Rxf4 {[%clk 0:00:19]} 45. Nb3 {[%clk 0:00:05]}  Rf3 {[%clk 0:00:18]} 46. Nc1 {[%clk 0:00:04]}  Rc3+ {[%clk 0:00:18]} 47. Kb1 {[%clk 0:00:04]}  Rc4 {[%clk 0:00:18]} 48. Nb3 {[%clk 0:00:04]}  Bc3 {[%clk 0:00:17]} 49. Rf2+ {[%clk 0:00:05]}  Ke7 {[%clk 0:00:17]} 50. Rc2 {[%clk 0:00:05]}  a2+ {[%clk 0:00:11]} 51. Kxa2 {[%clk 0:00:03]}  Rxa4+ {[%clk 0:00:11]} 52. Kb1 {[%clk 0:00:03]}  Bxd4 {[%clk 0:00:11]} 53. Rc7+ {[%clk 0:00:04]}  Kd6 {[%clk 0:00:11]} 54. Rb7 {[%clk 0:00:04]}  e5 {[%clk 0:00:09]} 55. Rb8 {[%clk 0:00:03]}  Rb4 {[%clk 0:00:07]} 56. Rxb4 {[%clk 0:00:03]}  axb4 {[%clk 0:00:08]} 57. Kc2 {[%clk 0:00:04]}  Bc3 {[%clk 0:00:08]} 58. Kd3 {[%clk 0:00:04]}  e4+ {[%clk 0:00:08]} 59. Ke3 {[%clk 0:00:05]}  Ke5 {[%clk 0:00:09]} 60. Ke2 {[%clk 0:00:05]}  d4 {[%clk 0:00:10]} 0-1


[Site "https://www.chess.com"]

[Event "Titled Tuesday Blitz July 25 Late 2023"]
[White "Nakamura, Hikaru"]
[Black "Troff, Kayden"]
[WhiteFideId "2016192"]
[BlackFideId "2047896"]
[WhiteElo "3261"]
[BlackElo "2813"]
[Result "1-0"]
[Round "6"]
[TimeControl "180+2"]
[Date "2023.07.25"]
[WhiteClock "0:01:23"]
[BlackClock "0:00:12"]
[Board "8"]

1. a3 {[%clk 0:03:00]}  a5 {[%clk 0:02:56]} 2. e4 {[%clk 0:03:00]}  c5 {[%clk 0:02:53]} 3. Nf3 {[%clk 0:02:58]}  g6 {[%clk 0:02:53]} 4. d4 {[%clk 0:02:53]}  cxd4 {[%clk 0:02:54]} 5. Qxd4 {[%clk 0:02:42]}  Nf6 {[%clk 0:02:54]} 6. e5 {[%clk 0:02:41]}  Nc6 {[%clk 0:02:54]} 7. Qh4 {[%clk 0:02:38]}  Nd5 {[%clk 0:02:53]} 8. Bc4 {[%clk 0:02:34]}  Nc7 {[%clk 0:02:18]} 9. O-O {[%clk 0:02:32]}  b5 {[%clk 0:02:15]} 10. Ba2 {[%clk 0:02:32]}  Ne6 {[%clk 0:02:15]} 11. Nc3 {[%clk 0:02:29]}  b4 {[%clk 0:02:14]} 12. Nd5 {[%clk 0:02:29]}  h6 {[%clk 0:02:02]} 13. Be3 {[%clk 0:02:27]}  Rb8 {[%clk 0:01:56]} 14. axb4 {[%clk 0:02:14]}  Nxb4 {[%clk 0:01:50]} 15. Bb3 {[%clk 0:01:55]}  Nxd5 {[%clk 0:01:49]} 16. Bxd5 {[%clk 0:01:56]}  Rb4 {[%clk 0:01:32]} 17. c4 {[%clk 0:01:53]}  Bg7 {[%clk 0:01:27]} 18. Bd2 {[%clk 0:01:52]}  Qb6 {[%clk 0:01:20]} 19. Bxb4 {[%clk 0:01:51]}  Qxb4 {[%clk 0:01:20]} 20. Bxe6 {[%clk 0:01:22]}  dxe6 {[%clk 0:01:09]} 21. c5 {[%clk 0:01:22]}  Qxh4 {[%clk 0:00:34]} 22. Nxh4 {[%clk 0:01:23]}  Bxe5 {[%clk 0:00:33]} 23. Rxa5 {[%clk 0:01:23]}  Kd7 {[%clk 0:00:28]} 24. c6+ {[%clk 0:01:22]}  Kxc6 {[%clk 0:00:20]} 25. Rxe5 {[%clk 0:01:22]}  Kd6 {[%clk 0:00:21]} 26. Re3 {[%clk 0:01:22]}  e5 {[%clk 0:00:21]} 27. Rd1+ {[%clk 0:01:22]}  Ke6 {[%clk 0:00:12]} 28. f4 {[%clk 0:01:23]} 1-0


[Site "https://www.chess.com"]

[Event "Titled Tuesday Blitz July 25 Late 2023"]
[White "Khanin, Semen"]
[Black "Naroditsky, Daniel"]
[WhiteFideId "4111990"]
[BlackFideId "2026961"]
[WhiteElo "2810"]
[BlackElo "3141"]
[Result "0-1"]
[Round "6"]
[TimeControl "180+2"]
[Date "2023.07.25"]
[WhiteClock "0:00:00"]
[BlackClock "0:00:03"]
[Board "9"]

1. e4 {[%clk 0:03:00]}  Nf6 {[%clk 0:03:00]} 2. e5 {[%clk 0:03:00]}  Nd5 {[%clk 0:03:01]} 3. c4 {[%clk 0:03:01]}  Nb6 {[%clk 0:03:01]} 4. d4 {[%clk 0:03:01]}  d6 {[%clk 0:03:02]} 5. exd6 {[%clk 0:03:02]}  exd6 {[%clk 0:03:03]} 6. Nc3 {[%clk 0:03:00]}  Be7 {[%clk 0:03:03]} 7. Bd3 {[%clk 0:02:59]}  O-O {[%clk 0:03:03]} 8. h3 {[%clk 0:02:50]}  Nc6 {[%clk 0:02:36]} 9. Nf3 {[%clk 0:02:49]}  Nb4 {[%clk 0:02:30]} 10. Bb1 {[%clk 0:02:45]}  g6 {[%clk 0:02:21]} 11. a3 {[%clk 0:02:30]}  Nc6 {[%clk 0:02:21]} 12. Bd3 {[%clk 0:02:26]}  Bf6 {[%clk 0:02:18]} 13. Be3 {[%clk 0:02:25]}  Ne7 {[%clk 0:02:13]} 14. O-O {[%clk 0:02:19]}  Nf5 {[%clk 0:02:01]} 15. Ne4 {[%clk 0:02:17]}  Bg7 {[%clk 0:02:01]} 16. Bg5 {[%clk 0:02:16]}  f6 {[%clk 0:02:00]} 17. Bd2 {[%clk 0:02:16]}  c6 {[%clk 0:01:57]} 18. b4 {[%clk 0:01:55]}  d5 {[%clk 0:01:52]} 19. cxd5 {[%clk 0:01:55]}  cxd5 {[%clk 0:01:42]} 20. Nc5 {[%clk 0:01:54]}  Nd6 {[%clk 0:01:40]} 21. Re1 {[%clk 0:01:50]}  Nbc4 {[%clk 0:01:41]} 22. Bf4 {[%clk 0:01:49]}  b6 {[%clk 0:01:38]} 23. Ne6 {[%clk 0:01:45]}  Bxe6 {[%clk 0:01:39]} 24. Rxe6 {[%clk 0:01:45]}  Qd7 {[%clk 0:01:39]} 25. Qe2 {[%clk 0:01:43]}  Rae8 {[%clk 0:01:37]} 26. Re1 {[%clk 0:01:42]}  Kf7 {[%clk 0:01:30]} 27. Bxd6 {[%clk 0:01:18]}  Rxe6 {[%clk 0:01:16]} 28. Qxe6+ {[%clk 0:00:27]}  Qxe6 {[%clk 0:01:17]} 29. Rxe6 {[%clk 0:00:26]}  Kxe6 {[%clk 0:01:18]} 30. Bxf8 {[%clk 0:00:26]}  Bxf8 {[%clk 0:01:19]} 31. b5 {[%clk 0:00:16]}  Bxa3 {[%clk 0:01:16]} 32. Kf1 {[%clk 0:00:16]}  Bb2 {[%clk 0:01:05]} 33. Ke2 {[%clk 0:00:16]}  Nd6 {[%clk 0:01:06]} 34. Ke3 {[%clk 0:00:12]}  Bc1+ {[%clk 0:01:05]} 35. Ke2 {[%clk 0:00:12]}  Ne4 {[%clk 0:01:05]} 36. Ne1 {[%clk 0:00:08]}  Nc3+ {[%clk 0:00:54]} 37. Kf3 {[%clk 0:00:08]}  f5 {[%clk 0:00:55]} 38. Nc2 {[%clk 0:00:08]}  Ne4 {[%clk 0:00:50]} 39. Nb4 {[%clk 0:00:05]}  Kd6 {[%clk 0:00:48]} 40. Ke2 {[%clk 0:00:03]}  Bb2 {[%clk 0:00:45]} 41. Ke3 {[%clk 0:00:01]}  Bc3 {[%clk 0:00:32]} 42. Nc2 {[%clk 0:00:01]}  g5 {[%clk 0:00:32]} 43. g3 {[%clk 0:00:01]}  h6 {[%clk 0:00:31]} 44. h4 {[%clk 0:00:01]}  f4+ {[%clk 0:00:30]} 45. Kf3 {[%clk 0:00:01]}  fxg3 {[%clk 0:00:17]} 46. fxg3 {[%clk 0:00:01]}  Nf6 {[%clk 0:00:18]} 47. hxg5 {[%clk 0:00:01]}  hxg5 {[%clk 0:00:19]} 48. g4 {[%clk 0:00:02]}  Bd2 {[%clk 0:00:18]} 49. Bf5 {[%clk 0:00:02]}  Bf4 {[%clk 0:00:18]} 50. Ke2 {[%clk 0:00:03]}  Ne4 {[%clk 0:00:18]} 51. Kd3 {[%clk 0:00:04]}  Ng3 {[%clk 0:00:18]} 52. Nb4 {[%clk 0:00:03]}  Nxf5 {[%clk 0:00:15]} 53. gxf5 {[%clk 0:00:03]}  g4 {[%clk 0:00:16]} 54. Ke2 {[%clk 0:00:03]}  Bg5 {[%clk 0:00:09]} 55. Nd3 {[%clk 0:00:03]}  Ke7 {[%clk 0:00:04]} 56. Ne5 {[%clk 0:00:02]}  Kf6 {[%clk 0:00:05]} 57. Nc6 {[%clk 0:00:02]}  Kxf5 {[%clk 0:00:04]} 58. Nxa7 {[%clk 0:00:03]}  Ke4 {[%clk 0:00:03]} 59. Nc6 {[%clk 0:00:04]}  g3 {[%clk 0:00:03]} 60. Ne5 {[%clk 0:00:04]}  Be3 {[%clk 0:00:02]} 61. Ng4 {[%clk 0:00:04]}  g2 {[%clk 0:00:02]} 62. Nf6+ {[%clk 0:00:00]}  Kxd4 {[%clk 0:00:03]} 0-1


[Site "https://www.chess.com"]

[Event "Titled Tuesday Blitz July 25 Late 2023"]
[White "Nihal Sarin"]
[Black "Oro, Faustino"]
[WhiteFideId "25092340"]
[BlackFideId "20000197"]
[WhiteElo "3075"]
[BlackElo "2792"]
[Result "1-0"]
[Round "6"]
[TimeControl "180+2"]
[Date "2023.07.25"]
[WhiteClock "0:00:16"]
[BlackClock "0:00:05"]
[Board "11"]

1. Nf3 {[%clk 0:03:00]}  Nf6 {[%clk 0:03:00]} 2. b3 {[%clk 0:03:00]}  d5 {[%clk 0:02:53]} 3. Bb2 {[%clk 0:03:00]}  Bf5 {[%clk 0:02:53]} 4. Nh4 {[%clk 0:02:59]}  Bg6 {[%clk 0:02:50]} 5. g3 {[%clk 0:02:58]}  e6 {[%clk 0:02:50]} 6. Bg2 {[%clk 0:02:59]}  Bd6 {[%clk 0:02:50]} 7. d3 {[%clk 0:02:59]}  O-O {[%clk 0:02:49]} 8. Nd2 {[%clk 0:03:00]}  c5 {[%clk 0:02:45]} 9. Nxg6 {[%clk 0:03:00]}  hxg6 {[%clk 0:02:45]} 10. O-O {[%clk 0:03:00]}  Nc6 {[%clk 0:02:45]} 11. e3 {[%clk 0:03:00]}  Be5 {[%clk 0:02:40]} 12. c3 {[%clk 0:03:00]}  Qc7 {[%clk 0:02:37]} 13. a3 {[%clk 0:02:58]}  Rad8 {[%clk 0:02:36]} 14. Nf3 {[%clk 0:02:54]}  Bd6 {[%clk 0:02:34]} 15. c4 {[%clk 0:02:55]}  Ne5 {[%clk 0:02:24]} 16. cxd5 {[%clk 0:02:34]}  exd5 {[%clk 0:02:22]} 17. Rc1 {[%clk 0:02:26]}  Nxf3+ {[%clk 0:02:16]} 18. Bxf3 {[%clk 0:02:17]}  Be7 {[%clk 0:02:09]} 19. d4 {[%clk 0:02:15]}  Qb6 {[%clk 0:01:37]} 20. dxc5 {[%clk 0:02:09]}  Bxc5 {[%clk 0:01:38]} 21. b4 {[%clk 0:02:09]}  Be7 {[%clk 0:01:36]} 22. Bd4 {[%clk 0:02:08]}  Qa6 {[%clk 0:01:31]} 23. Qb3 {[%clk 0:02:06]}  Ne4 {[%clk 0:01:28]} 24. Rfd1 {[%clk 0:01:52]}  Bf6 {[%clk 0:01:03]} 25. Kg2 {[%clk 0:01:44]}  Rfe8 {[%clk 0:00:59]} 26. Rc7 {[%clk 0:01:03]}  Qb5 {[%clk 0:00:14]} 27. Bxe4 {[%clk 0:00:33]}  Rxe4 {[%clk 0:00:13]} 28. Bxf6 {[%clk 0:00:27]}  gxf6 {[%clk 0:00:13]} 29. Rc5 {[%clk 0:00:27]}  Qe2 {[%clk 0:00:08]} 30. Rcxd5 {[%clk 0:00:28]}  Rxd5 {[%clk 0:00:08]} 31. Rxd5 {[%clk 0:00:28]}  Re7 {[%clk 0:00:07]} 32. Qc3 {[%clk 0:00:24]}  Re6 {[%clk 0:00:07]} 33. Rd8+ {[%clk 0:00:15]}  Kg7 {[%clk 0:00:07]} 34. Qc8 {[%clk 0:00:15]}  Rxe3 {[%clk 0:00:03]} 35. Rg8+ {[%clk 0:00:15]}  Kh6 {[%clk 0:00:04]} 36. Rh8+ {[%clk 0:00:16]}  Kg5 {[%clk 0:00:05]} 37. h4# {[%clk 0:00:16]} 1-0


[Site "https://www.chess.com"]

[Event "Titled Tuesday Blitz July 25 Late 2023"]
[White "He, Anthony"]
[Black "Tanenbaum, Zachary"]
[WhiteFideId "2088215"]
[BlackFideId "2060850"]
[WhiteElo "2978"]
[BlackElo "2748"]
[Result "1-0"]
[Round "6"]
[TimeControl "180+2"]
[Date "2023.07.25"]
[WhiteClock "0:01:25"]
[BlackClock "0:00:04"]
[Board "19"]

1. d4 {[%clk 0:03:00]}  d5 {[%clk 0:03:00]} 2. c4 {[%clk 0:03:01]}  dxc4 {[%clk 0:03:01]} 3. Nf3 {[%clk 0:03:00]}  Nf6 {[%clk 0:03:01]} 4. e3 {[%clk 0:03:00]}  Bg4 {[%clk 0:03:01]} 5. Bxc4 {[%clk 0:03:00]}  e6 {[%clk 0:03:02]} 6. O-O {[%clk 0:03:00]}  Nc6 {[%clk 0:03:02]} 7. Nbd2 {[%clk 0:02:59]}  Bd6 {[%clk 0:02:58]} 8. h3 {[%clk 0:02:59]}  Bh5 {[%clk 0:02:57]} 9. b3 {[%clk 0:02:59]}  O-O {[%clk 0:02:56]} 10. Bb2 {[%clk 0:02:59]}  Qe7 {[%clk 0:02:38]} 11. Bb5 {[%clk 0:02:53]}  Nb4 {[%clk 0:02:20]} 12. a3 {[%clk 0:02:51]}  a6 {[%clk 0:02:18]} 13. Be2 {[%clk 0:02:38]}  Nbd5 {[%clk 0:02:17]} 14. e4 {[%clk 0:02:36]}  Nf4 {[%clk 0:01:57]} 15. e5 {[%clk 0:02:34]}  N6d5 {[%clk 0:01:48]} 16. exd6 {[%clk 0:02:33]}  cxd6 {[%clk 0:01:49]} 17. Re1 {[%clk 0:02:31]}  Rfc8 {[%clk 0:01:30]} 18. Bf1 {[%clk 0:02:21]}  f5 {[%clk 0:01:26]} 19. Nc4 {[%clk 0:02:17]}  b5 {[%clk 0:01:23]} 20. Ne3 {[%clk 0:02:17]}  Nxe3 {[%clk 0:01:12]} 21. fxe3 {[%clk 0:02:13]}  Nd5 {[%clk 0:01:08]} 22. Qd2 {[%clk 0:02:07]}  Nf6 {[%clk 0:01:07]} 23. Bd3 {[%clk 0:02:06]}  Bxf3 {[%clk 0:01:03]} 24. gxf3 {[%clk 0:02:05]}  Nh5 {[%clk 0:00:59]} 25. Kh2 {[%clk 0:02:02]}  Qh4 {[%clk 0:00:57]} 26. Rg1 {[%clk 0:02:02]}  Rf8 {[%clk 0:00:54]} 27. Rac1 {[%clk 0:02:00]}  Rf6 {[%clk 0:00:53]} 28. Qg2 {[%clk 0:01:55]}  Rg6 {[%clk 0:00:51]} 29. Qe2 {[%clk 0:01:45]}  Rh6 {[%clk 0:00:46]} 30. Qf1 {[%clk 0:01:40]}  d5 {[%clk 0:00:25]} 31. Bc3 {[%clk 0:01:35]}  f4 {[%clk 0:00:17]} 32. Rg4 {[%clk 0:01:33]}  Qf6 {[%clk 0:00:16]} 33. Qf2 {[%clk 0:01:32]}  Rf8 {[%clk 0:00:10]} 34. Bb4 {[%clk 0:01:26]}  Rf7 {[%clk 0:00:04]} 35. Rc8+ {[%clk 0:01:25]} 1-0


[Site "https://www.chess.com"]